fUSD/lending_fUSD_20251102
["ID","MTS","AMOUNT","RATE_DAILY","PERIOD"]
[392848897,1762054924293,300.0,0.00014799,2]
[392848898,1762054937326,3507.98,6.954e-05,2]
[392848899,1762054937877,1210.13912628,7.32e-05,2]
[392848900,1762054937899,2297.84087372,7.32e-05,2]
[392848901,1762054937959,3507.98,7.686e-05,2]
[392848902,1762054938026,3507.98,8.052e-05,2]
[392848903,1762054938119,686.20912628,8.418e-05,2]
[392848904,1762054938142,2821.77087372,8.418e-05,2]
[392848905,1762054938333,3507.98,8.784e-05,2]
[392848906,1762054938556,3507.98,9.15e-05,2]
[392848907,1762054938741,162.27912628,9.516e-05,2]
[392848908,1762054938763,3345.70087372,9.516e-05,2]
[392848909,1762054938959,3507.98,9.882e-05,2]
[392848910,1762054939130,3146.32912628,0.00010248,2]
[392848911,1762054939152,361.65087372,0.00010248,2]
[392848912,1762054939333,3507.98,0.00010614,2]
[392848913,1762054939533,3507.98,0.0001098,2]
[392848914,1762054939734,2622.39912628,0.00011346,2]
[392848915,1762054939756,885.58087372,0.00011346,2]
[392848916,1762054939935,3507.98,0.00011712,2]
[392848917,1762054940129,3507.98,0.00012078,2]
[392848918,1762054940329,2098.46912628,0.00012444,2]
[392848919,1762054940352,1409.51087372,0.00012444,2]
[392848920,1762054940533,3507.98,0.0001281,2]
[392848921,1762054940726,3507.98,0.00013176,2]
[392848922,1762054940936,1574.53912628,0.00013542,2]
[392848923,1762054940957,1933.44087372,0.00013542,2]
[392848924,1762054941140,3507.98,0.00013908,2]
[392848925,1762054959514,1200.0,0.00014799,2]
[392848926,1762054981631,300.0,0.00014799,2]
[392848927,1762055009081,166.66,0.00013699,2]
[392848928,1762055009314,166.66,0.00013872,2]
[392848929,1762055009533,166.66,0.00014045,2]
[392848930,1762055009731,166.66,0.00014218,2]
[392848931,1762055010128,166.66,0.00014391,2]
[392848932,1762055010181,166.66,0.00014565,2]
[392848933,1762055025961,2058.62912628,0.00013871,2]
[392848934,1762055025984,5438.18087372,0.00013871,2]
[392848935,1762055039572,1449.51,0.00013871,2]
[392848936,1762055056120,3112.31912628,0.00014511,2]
[392848937,1762055056142,10000.01,0.00014511,2]
[392848938,1762055056164,10000.01,0.00014511,2]
[392848939,1762055056188,10000.01,0.00014511,2]
[392848940,1762055056212,10000.01,0.00014511,2]
[392848941,1762055056233,10000.01,0.00014511,2]
[392848942,1762055056255,10000.01,0.00014511,2]
[392848943,1762055056278,10000.01,0.00014511,2]
[392848944,1762055056300,10000.01,0.00014511,2]
[392848945,1762055056325,10000.01,0.00014511,2]
[392848946,1762055069893,-2464.97694627,0.00014511,2]
[392848947,1762055069958,-10000.01,0.00014511,2]
[392848948,1762055070115,-10000.01,0.00014511,2]
[392848949,1762055070208,-10000.01,0.00014511,2]
[392848950,1762055070320,-10000.01,0.00014511,2]
[392848951,1762055070426,-10000.01,0.00014511,2]
[392848952,1762055070552,-10000.01,0.00014511,2]
[392848953,1762055070655,-10000.01,0.00014511,2]
[392848954,1762055070760,-10000.01,0.00014511,2]
[392848955,1762055070884,-10000.01,0.00014511,2]
[392848956,1762055072985,-10000.01,0.00014511,2]
[392848957,1762055073818,200.0,0.00013869,2]
[392848958,1762055076559,-10000.01,0.00014511,2]
[392848959,1762055076770,-10000.01,0.00014511,2]
[392848960,1762055077041,-1573.53816525,0.00014511,2]
[392848961,1762055077460,180.0,0.00014203,2]
[392848962,1762055078840,433.39132916,0.0001451,2]
[392848963,1762055078880,500.0,0.0001451,2]
[392848964,1762055078934,500.0,0.0001451,2]
[392848965,1762055078981,590.09953447,0.0001451,2]
[392848966,1762055079028,500.0,0.0001451,2]
[392848967,1762055079091,500.0,0.0001451,2]
[392848968,1762055079142,500.0,0.0001451,2]
[392848969,1762055079191,500.0,0.0001451,2]
[392848970,1762055079235,500.0,0.0001451,2]
[392848971,1762055079297,500.0,0.0001451,2]
[392848972,1762055079354,500.0,0.0001451,2]
[392848973,1762055079402,500.0,0.0001451,2]
[392848974,1762055079450,500.0,0.0001451,2]
[392848975,1762055079508,149.44280587,0.0001451,2]
[392848976,1762055079537,350.55719413,0.0001451,2]
[392848977,1762055079581,500.0,0.0001451,2]
[392848978,1762055079632,500.0,0.0001451,2]
[392848979,1762055079677,500.0,0.0001451,2]
[392848980,1762055079737,500.0,0.0001451,2]
[392848981,1762055079795,500.0,0.0001451,2]
[392848982,1762055079841,500.0,0.0001451,2]
[392848983,1762055079883,500.0,0.0001451,2]
[392848984,1762055079938,190.66500144,0.0001451,2]
[392848985,1762055079986,500.0,0.0001451,2]
[392848986,1762055080033,500.0,0.0001451,2]
[392848987,1762055080090,500.0,0.0001451,2]
[392848988,1762055080135,500.0,0.0001451,2]
[392848989,1762055080179,500.0,0.0001451,2]
[392848991,1762055088110,-221.66766337,0.00014611,2]
[392848992,1762055093631,3462.03,0.00013868,2]
[392848993,1762055098123,500.0,0.0001451,2]
[392848994,1762055098192,500.0,0.0001451,2]
[392848995,1762055099423,159.91305525,0.00014438,2]
[392848996,1762055099508,159.91305525,0.00014603,2]
[392848997,1762055109554,150.0,0.00013488,2]
[392848998,1762055109611,150.0,0.00013532,2]
[392848999,1762055109691,150.0,0.00013576,2]
[392849000,1762055109745,150.0,0.0001362,2]
[392849001,1762055109816,150.0,0.00013664,2]
[392849002,1762055109883,150.0,0.00013708,2]
[392849003,1762055109957,150.0,0.00013752,2]
[392849004,1762055110071,150.0,0.0001384,2]
[392849005,1762055110127,150.0,0.00013884,2]
[392849006,1762055110178,150.0,0.00013796,2]
[392849007,1762055110249,150.0,0.00013928,2]
[392849008,1762055110315,150.0,0.00013973,2]
[392849009,1762055110388,150.0,0.00014017,2]
[392849010,1762055110452,150.0,0.00014061,2]
[392849011,1762055110526,150.0,0.00014105,2]
[392849012,1762055110593,150.0,0.00014149,2]
[392849013,1762055110711,150.0,0.00014193,2]
[392849014,1762055110754,150.0,0.00014237,2]
[392849015,1762055111143,150.0,0.00014281,2]
[392849016,1762055111182,150.0,0.00014325,2]
[392849017,1762055111224,150.0,0.00014369,2]
[392849018,1762055111263,150.0,0.00014413,2]
[392849019,1762055111300,150.0,0.00014457,2]
[392849020,1762055111340,150.0,0.00014501,2]
[392849021,1762055111379,150.0,0.00014546,2]
[392849022,1762055111419,150.0,0.0001459,2]
[392849023,1762055111453,150.0,0.00014634,2]
[392849024,1762055111497,150.0,0.00014678,2]
[392849025,1762055111532,150.0,0.00014722,2]
[392849026,1762055111575,150.0,0.00014766,2]
[392849027,1762055112082,150.0,0.00013603,2]
[392849028,1762055112150,150.0,0.00013718,2]
[392849029,1762055112185,150.0,0.00013834,2]
[392849030,1762055112261,150.0,0.00013949,2]
[392849031,1762055112315,150.0,0.00014064,2]
[392849032,1762055112387,150.0,0.00014179,2]
[392849033,1762055112440,150.0,0.00013488,2]
[392849034,1762055112515,150.0,0.00014295,2]
[392849035,1762055112588,150.0,0.0001441,2]
[392849036,1762055112640,150.0,0.00014525,2]
[392849037,1762055112681,150.0,0.0001464,2]
[392849038,1762055112748,150.0,0.00014756,2]
[392849039,1762055113006,150.0,0.00013488,2]
[392849040,1762055113157,150.0,0.00013488,2]
[392849041,1762055113206,150.0,0.00013588,2]
[392849042,1762055113265,150.0,0.00013687,2]
[392849043,1762055113324,150.0,0.00013787,2]
[392849044,1762055113398,150.0,0.00013887,2]
[392849045,1762055113471,150.0,0.00013987,2]
[392849046,1762055113541,150.0,0.00014087,2]
[392849047,1762055113815,150.0,0.00014187,2]
[392849048,1762055113849,150.0,0.00014387,2]
[392849049,1762055113884,150.0,0.00014487,2]
[392849050,1762055113943,150.0,0.00014287,2]
[392849051,1762055113977,150.0,0.00014687,2]
[392849052,1762055114013,150.0,0.00014587,2]
[392849053,1762055115159,500.0,0.0001451,2]
[392849054,1762055116933,201.34032179,0.00013488,2]
[392849055,1762055118282,150.0,0.00013488,2]
[392849056,1762055118344,150.0,0.00013567,2]
[392849057,1762055118415,150.0,0.00013645,2]
[392849058,1762055118492,150.0,0.00013724,2]
[392849059,1762055118566,150.0,0.00013803,2]
[392849060,1762055118631,148.66967821,0.00013882,2]
[392849061,1762055118655,1.33032179,0.00013882,2]
[392849062,1762055118704,150.0,0.00013961,2]
[392849063,1762055118771,150.0,0.0001404,2]
[392849064,1762055118840,150.0,0.00014119,2]
[392849065,1762055118914,150.0,0.00014198,2]
[392849066,1762055118983,150.0,0.00014276,2]
[392849067,1762055119052,150.0,0.00014355,2]
[392849068,1762055119123,150.0,0.00014434,2]
[392849069,1762055119193,150.0,0.00014513,2]
[392849070,1762055119500,150.0,0.00014592,2]
[392849071,1762055119536,150.0,0.00014671,2]
[392849072,1762055119575,150.0,0.0001475,2]
[392849073,1762055121612,150.0,0.00013488,2]
[392849074,1762055121663,150.0,0.00013567,2]
[392849075,1762055121732,150.0,0.00013645,2]
[392849076,1762055121807,150.0,0.00013724,2]
[392849077,1762055121875,150.0,0.00013803,2]
[392849078,1762055121946,150.0,0.00013882,2]
[392849079,1762055122015,150.0,0.00013961,2]
[392849080,1762055122083,150.0,0.0001404,2]
[392849081,1762055122187,150.0,0.00014119,2]
[392849082,1762055122237,150.0,0.00014198,2]
[392849083,1762055122299,150.0,0.00014276,2]
[392849084,1762055122365,150.0,0.00014355,2]
[392849085,1762055122605,150.0,0.00014434,2]
[392849086,1762055122667,150.0,0.00014592,2]
[392849087,1762055122708,150.0,0.00014513,2]
[392849088,1762055122744,150.0,0.00014671,2]
[392849089,1762055122795,150.0,0.0001475,2]
[392849090,1762055128311,167.76886141,0.00013488,2]
[392849091,1762055128351,300.0,0.00014749,2]
[392849092,1762055128387,150.0,0.00013488,2]
[392849093,1762055128437,150.0,0.00013737,2]
[392849094,1762055128520,150.0,0.00013987,2]
[392849095,1762055128583,150.0,0.00014237,2]
[392849096,1762055128656,150.0,0.00014487,2]
[392849097,1762055128723,150.0,0.00014737,2]
[392849098,1762055128857,155.22205847,0.00013488,2]
[392849099,1762055128940,150.0,0.00013488,2]
[392849100,1762055128975,150.0,0.00013862,2]
[392849101,1762055129038,150.0,0.00014237,2]
[392849102,1762055129105,150.0,0.00014612,2]
[392849103,1762055129302,150.0,0.00013488,2]
[392849104,1762055129395,150.0,0.00014237,2]
[392849105,1762055133351,152.30958543,0.00013488,2]
[392849106,1762055133487,150.0,0.00013488,2]
[392849107,1762055133524,150.0,0.00014087,2]
[392849108,1762055133561,150.0,0.00013787,2]
[392849109,1762055133600,150.0,0.00014387,2]
[392849110,1762055133655,150.0,0.00014687,2]
[392849111,1762055133822,150.0,0.00013488,2]
[392849112,1762055133859,150.0,0.00013987,2]
[392849113,1762055133920,150.0,0.00014487,2]
[392849114,1762055137294,500.0,0.0001451,2]
[392849115,1762055138987,150.0,0.00013488,2]
[392849116,1762055139041,150.0,0.00013787,2]
[392849117,1762055139133,150.0,0.00014087,2]
[392849118,1762055139178,150.0,0.00014387,2]
[392849119,1762055139250,150.0,0.00014687,2]
[392849120,1762055140646,150.0,0.00013488,2]
[392849121,1762055140694,150.0,0.00013576,2]
[392849122,1762055140768,150.0,0.00013664,2]
[392849123,1762055140834,150.0,0.00013752,2]
[392849124,1762055140905,150.0,0.0001384,2]
[392849125,1762055140976,23.3791729,0.00013928,2]
[392849126,1762055140997,126.6208271,0.00013928,2]
[392849127,1762055141057,150.0,0.00014017,2]
[392849128,1762055141127,150.0,0.00014105,2]
[392849129,1762055141198,150.0,0.00014193,2]
[392849130,1762055141260,150.0,0.00014281,2]
[392849131,1762055141331,150.0,0.00014369,2]
[392849132,1762055141403,150.0,0.00014457,2]
[392849133,1762055141476,150.0,0.00014546,2]
[392849134,1762055141571,150.0,0.00014634,2]
[392849135,1762055141616,150.0,0.00014722,2]
[392849138,1762055149458,5516.74,0.00013864,2]
[392849139,1762055151432,610.0,0.00013864,2]
[392849140,1762055153528,2396.6491729,0.00014767,2]
[392849141,1762055153552,980.1399271,0.00014767,2]
[392849143,1762055165851,234.1905,0.00014767,2]
[392849144,1762055168655,500.0,0.0001451,2]
[392849145,1762055176493,2000.0,0.00014,2]
[392849146,1762055179660,150.0,0.00013864,2]
[392849147,1762055184525,500.0,0.000147,2]
[392849149,1762055210224,150.0,0.00013865,2]
[392849150,1762055213540,168.0,0.00014376,2]
[392849151,1762055218468,168.0,0.00014541,2]
[392849152,1762055224381,168.0,0.00014425,2]
[392849153,1762055232236,908.0,0.00014223,2]
[392849154,1762055237279,4073.6795729,0.0001386,2]
[392849155,1762055237302,974.1404271,0.0001386,2]
[392849157,1762055239232,595.4402,0.00014767,2]
[392849164,1762055246592,200.92506264,0.00014693,2]
[392849168,1762055344553,178.26,0.00011093,2]
[392849169,1762055344763,178.26,0.00012941,2]
[392849170,1762055372498,562.12,0.00013864,2]
[392849171,1762055376061,7310.86431026,0.00013974,2]
[392849172,1762055376091,10000.01,0.00013974,2]
[392849173,1762055376115,410.19568974,0.00013974,2]
[392849174,1762055428814,250.0,0.00013866,2]
[392849177,1762055432173,-159.91305525,0.00014767,2]
[392849178,1762055432183,-250.0,0.00014768,2]
[392849179,1762055432196,-1425.0,0.00014768,2]
[392849180,1762055432207,-150.0,0.00014781,2]
[392849181,1762055432217,-150.0,0.00014786,2]
[392849182,1762055432227,-168.0,0.0001479,2]
[392849183,1762055432236,-87.74133573,0.0001479,2]
[392849184,1762055432248,-90.51866427,0.0001479,2]
[392849185,1762055432258,-858.63766436,0.00014798,2]
[392849186,1762055432271,-341.36233564,0.00014798,2]
[392849187,1762055432281,-31.93575976,0.00014799,2]
[392849188,1762055432384,-168.06424024,0.00014799,2]
[392849189,1762055432394,-150.0,0.00014799,2]
[392849190,1762055432404,-300.0,0.00014799,2]
[392849191,1762055432413,-300.0,0.00014799,2]
[392849192,1762055432424,-1200.0,0.00014799,2]
[392849193,1762055432433,-1444.41422967,0.000148,2]
[392849194,1762055432442,-1713.08957721,0.000148,2]
[392849195,1762055432453,-157.42867599,0.000148,2]
[392849196,1762055432463,-2500.0,0.000148,2]
[392849197,1762055432473,-150.0,0.0001481,2]
[392849198,1762055432487,-150.0,0.0001481,2]
[392849199,1762055432496,-1713.08957712,0.00014811,2]
[392849200,1762055432506,-157.42867594,0.00014811,2]
[392849201,1762055432515,-1713.08957712,0.00014822,2]
[392849202,1762055432524,-157.42867594,0.00014822,2]
[392849203,1762055432534,-150.0,0.00014829,2]
[392849204,1762055432543,-150.0,0.00014829,2]
[392849205,1762055432553,-300.0,0.0001483,2]
[392849206,1762055432562,-1713.08957712,0.00014833,2]
[392849207,1762055432571,-157.42867594,0.00014833,2]
[392849208,1762055432581,-1713.08957712,0.00014844,2]
[392849209,1762055432593,-157.42867594,0.00014844,2]
[392849210,1762055432604,-4441.70811327,0.0001485,2]
[392849211,1762055432614,-10000.01,0.0001485,2]
[392849212,1762055432623,-10000.01,0.0001485,2]
[392849213,1762055432632,-16764.03292262,0.0001485,2]
[392849214,1762055432641,-802.43183,0.0001485,2]
[392849215,1762055432651,-150.0,0.00014854,2]
[392849216,1762055432663,-1713.08957712,0.00014856,2]
[392849217,1762055432676,-157.42867594,0.00014856,2]
[392849218,1762055432687,-603.66446896,0.00014857,2]
[392849219,1762055432697,-500.0,0.00014866,2]
[392849220,1762055432706,-500.0,0.00014866,2]
[392849221,1762055432716,-500.34323659,0.00014866,2]
[392849222,1762055432725,-500.0,0.00014866,2]
[392849223,1762055432735,-500.0,0.00014866,2]
[392849224,1762055432748,-1713.08957712,0.00014867,2]
[392849225,1762055432758,-157.42867594,0.00014867,2]
[392849226,1762055432768,-150.0,0.00014871,2]
[392849227,1762055432777,-603.66446896,0.00014871,2]
[392849228,1762055432787,-500.0,0.00014873,2]
[392849229,1762055432797,-500.0,0.00014873,2]
[392849230,1762055432807,-500.0,0.00014873,2]
[392849231,1762055432817,-505.32690918,0.00014873,2]
[392849232,1762055432826,-500.0,0.00014873,2]
[392849233,1762055432836,-180.47436555,0.00014877,2]
[392849234,1762055432846,-1713.08957712,0.00014878,2]
[392849236,1762055432856,-157.42867594,0.00014878,2]
[392849238,1762055432865,-603.66446896,0.00014886,2]
[392849240,1762055432874,-150.0,0.00014886,2]
[392849242,1762055432884,-150.0,0.00014887,2]
[392849244,1762055432893,-1713.08957712,0.00014889,2]
[392849246,1762055432902,-157.42867594,0.00014889,2]
[392849247,1762055432912,-153.68065959,0.00014891,2]
[392849248,1762055432922,-239.84119403,0.00014891,2]
[392849249,1762055432931,-1425.0,0.00014892,2]
[392849251,1762055432940,-1425.0,0.00014897,2]
[392849253,1762055432949,-151.0,0.00014897,2]
[392849254,1762055432959,-150.0,0.00014898,2]
[392849255,1762055432969,-150.0,0.00014898,2]
[392849256,1762055432978,-176.76000748,0.00014899,2]
[392849257,1762055432987,-307.81247263,0.00014899,2]
[392849258,1762055432998,-500.0,0.00014899,2]
[392849259,1762055433008,-603.64877921,0.00014899,2]
[392849260,1762055433018,-405.35846437,0.00014899,2]
[392849261,1762055433027,-500.0,0.00014899,2]
[392849262,1762055433037,-537.07760344,0.00014899,2]
[392849263,1762055433047,-1444.41422967,0.000149,2]
[392849264,1762055433057,-19953.75876481,0.000149,2]
[392849265,1762055433296,-13286.90263519,0.000149,2]
[392849266,1762055433306,-7339.6274,0.000149,2]
[392849267,1762055433316,-240498.19708126,0.000149,2]
[392849268,1762055433329,-457.07728775,0.000149,2]
[392849273,1762055438162,-624.30577515,0.000149,2]
[392849274,1762055438374,-250.88256526,0.000149,2]
[392849275,1762055438387,-33522.60689297,0.000149,2]
[392849289,1762055440260,-10934.0,0.000149,2]
[392849514,1762055443496,-5797.53612836,0.000149,2]
[392849515,1762055443507,-1166.78052903,0.000149,2]
[392849516,1762055443518,-1823.68153071,0.000149,2]
[392849521,1762055446258,-440.72,0.000149,2]
[392849525,1762055574866,221.66766337,0.00014522,2]
[392849526,1762055576209,893.21759391,0.00014738,2]
[392849527,1762055642225,1040.36,0.00013938,2]
[392849530,1762055657592,1000.0,0.00013699,2]
[392849531,1762055672078,250.75,0.00013922,2]
[392849533,1762055733549,1425.0,0.00014759,2]
[392849534,1762055733739,1425.0,0.00014744,2]
[392849535,1762055754221,300.0,0.000145,2]
[392849536,1762055819973,168.0,0.00014359,2]
[392849537,1762055896298,3276.01474272,0.00013944,2]
[392849538,1762055896323,2967.94525728,0.00013944,2]
[392849539,1762055915166,1591.73,0.00014061,2]
[392849540,1762055950607,377.2902931,0.000147,2]
[392849541,1762055952312,5063.04444962,0.00013953,2]
[392849542,1762055952336,19.03555038,0.00013953,2]
[392849543,1762055955579,377.2902931,0.00014729,2]
[392849544,1762055960745,377.2902931,0.00014757,2]
[392849545,1762055967715,-377.2902931,0.00014786,2]
[392849546,1762055971077,5449.05404266,0.000147,2]
[392849547,1762055975906,3796.37537114,0.00014722,2]
[392849548,1762055975929,1652.67867143,0.00014722,2]
[392849549,1762055977601,208.7653768,0.00014203,2]
[392849550,1762055980871,5449.05404257,0.00014744,2]
[392849551,1762055985871,2689.5119092,0.00014767,2]
[392849552,1762055985894,2759.54213337,0.00014767,2]
[392849553,1762055994192,507.44,0.00013946,2]
[392849554,1762056024013,500.0,0.00013356,2]
[392849555,1762056033618,1425.0,0.0001476,2]
[392849556,1762056049319,168.0,0.00014281,2]
[392849557,1762056057297,451.6941,0.000147,2]
[392849558,1762056063731,1164.0,0.00014558,2]
[392849559,1762056074271,221.66766337,0.00014543,2]
[392849560,1762056074801,893.21759391,0.0001475,2]
[392849561,1762056083327,500.0,0.00013356,2]
[392849562,1762056083880,500.0,0.00014726,2]
[392849563,1762056095349,157.42867594,0.000147,2]
[392849564,1762056095473,325.47763889,0.00014777,2]
[392849565,1762056125349,282.88702813,0.00014192,2]
[392849566,1762056126098,143.65516639,0.00013927,2]
[392849567,1762056126120,1708.76483361,0.00013927,2]
[392849568,1762056134562,8291.24516639,0.00013926,2]
[392849569,1762056134590,10000.01,0.00013926,2]
[392849570,1762056134615,3765.43483361,0.00013926,2]
[392849571,1762056163125,467.46,0.00013933,2]
[392849572,1762056171508,171.30895773,0.000147,2]
[392849573,1762056176462,171.30895771,0.00014722,2]
[392849574,1762056181451,171.30895771,0.00014744,2]
[392849575,1762056186472,171.30895771,0.00014767,2]
[392849576,1762056212881,1000.0,0.000147,2]
[392849577,1762056216131,209.83207858,0.000147,2]
[392849578,1762056220907,209.83207851,0.00014729,2]
[392849579,1762056225871,209.83207851,0.00014757,2]
[392849580,1762056229563,1500.0,0.00013931,2]
[392849581,1762056230886,209.83207851,0.00014786,2]
[392849582,1762056250601,1000.0,0.00013925,2]
[392849583,1762056269532,742.55102142,0.000147,2]
[392849584,1762056269557,1757.44897858,0.000147,2]
[392849585,1762056286583,244.0,0.00014529,2]
[392849586,1762056309219,179.92837473,0.00013488,2]
[392849587,1762056309304,150.0,0.00013488,2]
[392849588,1762056309358,150.0,0.00013624,2]
[392849589,1762056309434,150.0,0.0001376,2]
[392849590,1762056309494,150.0,0.00013896,2]
[392849591,1762056309563,150.0,0.00014033,2]
[392849592,1762056309642,150.0,0.00014169,2]
[392849593,1762056309701,150.0,0.00014305,2]
[392849594,1762056309777,150.0,0.00014441,2]
[392849595,1762056309846,150.0,0.00014578,2]
[392849596,1762056309919,150.0,0.00014714,2]
[392849597,1762056310174,150.0,0.00013488,2]
[392849598,1762056310211,150.0,0.00013737,2]
[392849599,1762056310266,150.0,0.00013987,2]
[392849600,1762056310341,150.0,0.00014237,2]
[392849601,1762056310406,150.0,0.00014487,2]
[392849602,1762056310479,150.0,0.00014737,2]
[392849603,1762056310636,150.0,0.00013488,2]
[392849604,1762056310702,150.0,0.00013862,2]
[392849605,1762056310769,150.0,0.00014237,2]
[392849606,1762056310845,150.0,0.00014612,2]
[392849607,1762056314688,150.0,0.00013488,2]
[392849608,1762056314724,150.0,0.00013987,2]
[392849609,1762056314789,150.0,0.00014487,2]
[392849610,1762056317805,150.0,0.00013488,2]
[392849611,1762056317881,150.0,0.00013862,2]
[392849612,1762056317949,150.0,0.00014237,2]
[392849613,1762056318019,150.0,0.00014612,2]
[392849614,1762056326247,150.0,0.00013488,2]
[392849615,1762056326434,159.17708696,0.00013488,2]
[392849616,1762056326487,285.22335192,0.00013488,2]
[392849617,1762056329840,184.15019715,0.00013488,2]
[392849618,1762056329884,164.50739343,0.00013488,2]
[392849619,1762056335858,151.41430349,0.00013488,2]
[392849620,1762056335907,150.0,0.00013488,2]
[392849621,1762056369720,5937.61,0.00013926,2]
[392849622,1762056393584,1425.0,0.00014626,2]
[392849623,1762056393802,1425.0,0.00014631,2]
[392849624,1762056396191,468.01037,0.0001475,2]
[392849625,1762056401183,94.31773593,0.0001465,2]
[392849626,1762056401205,1330.68226407,0.0001465,2]
[392849627,1762056420422,500.0,0.00013356,2]
[392849628,1762056421060,500.0,0.00014726,2]
[392849629,1762056424321,962.83,0.00013936,2]
[392849630,1762056438667,2500.0,0.000147,2]
[392849631,1762056466214,3988.29938684,0.000147,2]
[392849632,1762056471212,218.19834909,0.00014722,2]
[392849633,1762056471235,3770.10103771,0.00014722,2]
[392849634,1762056476215,3988.2993868,0.00014744,2]
[392849635,1762056481144,166.0103664,0.000147,2]
[392849636,1762056481222,2075.59920909,0.00014767,2]
[392849637,1762056481253,1912.70017771,0.00014767,2]
[392849638,1762056485485,500.0,0.00014,2]
[392849639,1762056485536,456.44,0.00014,2]
[392849641,1762056486159,166.01036639,0.0001474,2]
[392849642,1762056486247,616.86,0.00014,2]
[392849645,1762056516621,168.0,0.00014353,2]
[392849648,1762056542764,409.92532995,0.000147,2]
[392849649,1762056547984,409.92532988,0.00014722,2]
[392849650,1762056552793,409.92532988,0.00014744,2]
[392849651,1762056553198,391.82,0.00014,2]
[392849652,1762056557770,409.92532988,0.00014767,2]
[392849654,1762056561552,2603.60359648,0.00015,3]
[392849655,1762056564142,221.66766337,0.00014527,2]
[392849656,1762056608558,848.9391,0.000147,2]
[392849657,1762056624169,-166.01036639,0.0001478,2]
[392849658,1762056624198,-893.21759391,0.0001478,2]
[392849659,1762056624227,-250.0,0.00014784,2]
[392849660,1762056624269,-300.0,0.00014788,2]
[392849661,1762056624300,-300.0,0.00014788,2]
[392849662,1762056624330,-1200.0,0.00014788,2]
[392849663,1762056624613,-3988.2993868,0.00014789,2]
[392849664,1762056624644,-409.92532988,0.00014789,2]
[392849665,1762056624673,-300.0,0.00014789,2]
[392849666,1762056624707,-300.0,0.00014789,2]
[392849667,1762056624982,-1200.0,0.0001479,2]
[392849668,1762056625013,-150.0,0.0001479,2]
[392849669,1762056628107,-1015.47,0.00014791,2]
[392849670,1762056628135,-155.54137155,0.00014791,2]
[392849671,1762056628191,-1739.87927761,0.00014791,2]
[392849672,1762056628227,-3479.75855522,0.00014791,2]
[392849673,1762056628356,-3040.49288956,0.00014791,2]
[392849674,1762056628387,-321.5585805,0.00014791,2]
[392849675,1762056628415,-151.0,0.00014791,2]
[392849676,1762056628445,-200.0,0.00014791,2]
[392849677,1762056628478,-151.0,0.00014791,2]
[392849678,1762056628507,-151.0,0.00014791,2]